bitfinex/quotes_BTCUSD_20220405
["timestamp","ask_amount","ask_price","bid_price","bid_amount"]
[1649135202266,7.503e-05,46840.0,46839.0,0.320633]
[1649135204927,7.503e-05,46840.0,46839.0,0.620633]
[1649135205377,7.503e-05,46840.0,46839.0,0.320633]
[1649135207432,7.503e-05,46840.0,46839.0,0.32053828]
[1649135228633,7.503e-05,46840.0,46833.0,0.320633]
[1649135228735,7.503e-05,46840.0,46837.0,0.320547]
[1649135228835,7.503e-05,46840.0,46838.0,0.05]
[1649135228983,7.503e-05,46840.0,46839.0,0.320547]
[1649135230740,7.503e-05,46840.0,46839.0,0.32044945]
[1649135235723,0.23794311,46840.0,46839.0,0.32044945]
[1649135236024,5.23794311,46840.0,46833.0,0.27733861]
[1649135236125,5.23794311,46840.0,46834.0,0.320547]
[1649135236222,5.23794311,46840.0,46834.0,0.370547]
[1649135236422,0.1404784,46839.0,46834.0,0.370547]
[1649135237127,0.2522199,46836.0,46834.0,0.370547]
[1649135237226,0.1404784,46839.0,46834.0,0.370547]
[1649135238367,0.29389683,46838.0,46834.0,0.370547]
[1649135238769,0.1404784,46839.0,46834.0,0.370547]
[1649135239872,0.45036169,46839.0,46834.0,0.370547]
[1649135240574,0.1404784,46839.0,46834.0,0.370547]
[1649135242001,0.1404784,46839.0,46835.0,0.053386]
[1649135242102,0.1404784,46839.0,46836.0,0.320547]
[1649135242805,5.23794311,46840.0,46836.0,0.320547]
[1649135244158,5.23794311,46840.0,46836.0,0.370547]
[1649135244508,5.00007503,46840.0,46836.0,0.370547]
[1649135244607,5.00007503,46840.0,46836.0,0.670547]
[1649135244712,5.00007503,46840.0,46836.0,0.370547]
[1649135244910,5.00007503,46840.0,46839.0,0.28155469]
[1649135245011,5.00007503,46840.0,46839.0,0.65210169]
[1649135246234,5.00007503,46840.0,46839.0,0.65183332]
[1649135246535,5.00007503,46840.0,46839.0,0.37027863]
[1649135247591,5.00007503,46840.0,46839.0,0.64297024]
[1649135248342,5.00007503,46840.0,46839.0,0.63297024]
[1649135251684,5.00007503,46840.0,46839.0,0.36027863]
[1649135252183,5.00007503,46840.0,46839.0,0.320547]
[1649135253246,4.99998109,46840.0,46839.0,0.370547]
[1649135253347,4.99998109,46840.0,46839.0,0.61657825]
[1649135253447,4.99998109,46840.0,46839.0,0.370547]
[1649135256152,4.99998109,46840.0,46839.0,0.320547]
[1649135257684,4.53178837,46840.0,46839.0,0.320547]
[1649135265744,4.53178837,46840.0,46839.0,0.6473656]
[1649135267697,4.53164831,46840.0,46839.0,0.6473656]
[1649135268148,4.53164831,46840.0,46839.0,0.670547]
[1649135268281,4.53164831,46840.0,46839.0,0.370547]
[1649135272316,4.53164831,46840.0,46839.0,0.320547]
[1649135273874,4.82794348,46840.0,46839.0,0.320547]
[1649135274173,4.53164831,46840.0,46839.0,0.320547]
[1649135275072,4.53164831,46840.0,46839.0,0.370547]
[1649135275523,4.76788826,46840.0,46839.0,0.370547]
[1649135275737,4.53164831,46840.0,46839.0,0.370547]
[1649135285737,4.53164831,46840.0,46839.0,0.320547]
[1649135287331,4.53164831,46840.0,46839.0,0.370547]
[1649135287932,4.06346879,46840.0,46839.0,0.370547]
[1649135290290,4.06346879,46840.0,46839.0,0.670547]
[1649135303227,4.06346879,46840.0,46839.0,0.660547]
[1649135304280,4.06346879,46840.0,46839.0,0.620547]
[1649135306170,4.06346879,46840.0,46839.0,0.670547]
[1649135311981,4.06346879,46840.0,46839.0,0.370547]
[1649135313132,4.06346879,46840.0,46839.0,0.319847]
[1649135313741,4.3508872,46840.0,46839.0,0.319847]
[1649135316097,4.3508872,46840.0,46839.0,0.369847]
[1649135316291,4.06346879,46840.0,46839.0,0.369847]
[1649135317107,4.06346879,46840.0,46839.0,0.319847]
[1649135317557,4.36469492,46840.0,46839.0,0.319847]
[1649135317958,3.8965127,46840.0,46839.0,0.319847]
[1649135318057,3.59528657,46840.0,46839.0,0.319847]
[1649135320362,3.59528657,46840.0,46839.0,0.369847]
[1649135322140,3.59528657,46840.0,46839.0,0.319847]
[1649135326183,3.59528657,46840.0,46839.0,0.369847]
[1649135333883,3.60028657,46840.0,46839.0,0.369847]
[1649135334184,3.60028657,46840.0,46839.0,0.319847]
[1649135339199,3.60028657,46840.0,46834.0,0.053386]
[1649135339293,3.60028657,46840.0,46833.0,0.01068]
[1649135339294,0.29618987,46839.0,46833.0,0.01068]
[1649135339396,0.32259358,46839.0,46832.0,0.00055364]
[1649135339500,0.06920371,46839.0,46832.0,0.00055364]
[1649135339603,0.20968198,46839.0,46832.0,0.00055364]
[1649135340105,0.20968198,46839.0,46830.0,0.1]
[1649135340201,0.29725343,46832.0,46830.0,0.1]
[1649135341153,0.29725343,46832.0,46830.0,0.09993329]
[1649135342905,0.29725343,46832.0,46830.0,0.09493329]
[1649135343388,0.29725343,46832.0,46831.0,0.320547]
[1649135347028,0.29725343,46832.0,46830.0,0.14832429]
[1649135347127,0.29725343,46832.0,46831.0,0.320547]
[1649135347227,0.29725343,46832.0,46830.0,0.14832429]
[1649135347827,0.29725343,46832.0,46831.0,0.320547]
[1649135347930,0.29725343,46832.0,46830.0,0.14832429]
[1649135348028,0.25639274,46833.0,46832.0,0.17099032]
[1649135354483,0.0428,46837.0,46832.0,0.17099032]
[1649135355281,0.0378,46837.0,46832.0,0.17099032]
[1649135355479,0.25464413,46835.0,46832.0,0.17099032]
[1649135366394,0.320547,46834.0,46832.0,0.17099032]
[1649135366498,0.25464413,46835.0,46832.0,0.17099032]
[1649135366499,0.6202469,46833.0,46832.0,0.17099032]
[1649135366696,0.41619181,46833.0,46832.0,0.17099032]
[1649135367147,0.71619181,46833.0,46832.0,0.17099032]
[1649135367346,1.06393111,46833.0,46832.0,0.17099032]
[1649135367794,1.20440954,46833.0,46832.0,0.17099032]
[1649135368196,0.85667024,46833.0,46832.0,0.17099032]
[1649135368697,0.71619181,46833.0,46832.0,0.17099032]
[1649135368796,0.85667024,46833.0,46832.0,0.17099032]
[1649135368998,0.71619181,46833.0,46832.0,0.17099032]
[1649135369636,0.85669057,46833.0,46832.0,0.17099032]
[1649135370589,0.85669057,46833.0,46830.0,0.09548693]
[1649135370590,3.15,46832.0,46830.0,0.09548693]
[1649135370691,0.67339181,46831.0,46830.0,0.09548693]
[1649135370789,0.71619181,46831.0,46830.0,0.09548693]
[1649135371090,0.85669898,46831.0,46830.0,0.09548693]
[1649135371290,0.85669898,46831.0,46830.0,0.09493329]
[1649135373554,0.90669898,46831.0,46830.0,0.09493329]
[1649135374055,0.96010698,46831.0,46830.0,0.09493329]
[1649135377654,0.81959981,46831.0,46830.0,0.09493329]
[1649135386472,0.96011347,46831.0,46830.0,0.09493329]
[1649135391402,0.90726866,46831.0,46830.0,0.09493329]
[1649135391600,0.91807866,46831.0,46830.0,0.09493329]
[1649135392242,0.91807866,46831.0,46830.0,0.09482811]
[1649135393644,0.91749228,46831.0,46830.0,0.09482811]
[1649135395248,0.91749217,46831.0,46830.0,0.05767211]
[1649135395349,0.90668228,46831.0,46830.0,0.05767211]
[1649135396722,0.89668228,46831.0,46830.0,0.05767211]
[1649135400052,1.31493892,46831.0,46830.0,0.05767211]
[1649135400155,1.31493892,46831.0,46830.0,0.34726436]
[1649135400254,0.89668228,46831.0,46830.0,0.34726436]
[1649135400355,0.90749251,46831.0,46830.0,0.34726436]
[1649135400455,0.90749228,46831.0,46830.0,0.34726436]
[1649135403453,0.76689634,46831.0,46830.0,0.34726436]
[1649135403653,0.90741305,46831.0,46830.0,0.34726436]
[1649135403855,0.76689634,46831.0,46830.0,0.34726436]
[1649135404054,0.90741305,46831.0,46830.0,0.34726436]
[1649135404605,0.90741305,46831.0,46830.0,0.34561036]
[1649135404806,0.60741305,46831.0,46830.0,0.34561036]
[1649135405108,0.46689634,46831.0,46830.0,0.34561036]
[1649135406759,0.75640316,46831.0,46830.0,0.34561036]
[1649135407585,0.89691987,46831.0,46830.0,0.34561036]
[1649135408738,1.21917977,46831.0,46830.0,0.34561036]
[1649135409241,0.89691987,46831.0,46830.0,0.34561036]
[1649135413758,0.99691987,46831.0,46830.0,0.34561036]
[1649135413857,0.99691987,46831.0,46830.0,0.0603241]
[1649135414498,1.13400431,46831.0,46830.0,0.0603241]
[1649135415100,1.13400431,46831.0,46830.0,0.05943685]
[1649135415101,0.84449749,46831.0,46830.0,0.05943685]
[1649135415503,1.13457453,46831.0,46830.0,0.05943685]
[1649135417462,1.66927453,46831.0,46830.0,0.05943685]
[1649135418288,1.71927453,46831.0,46830.0,0.05943685]
[1649135418646,1.71050053,46831.0,46830.0,0.05943685]
[1649135419340,2.21050053,46831.0,46830.0,0.05943685]
[1649135420092,2.38883001,46831.0,46830.0,0.05943685]
[1649135425108,2.34760401,46831.0,46830.0,0.05943685]
[1649135426042,2.35828401,46831.0,46830.0,0.05943685]
[1649135426142,2.40828401,46831.0,46830.0,0.05943685]
[1649135427446,1.90828401,46831.0,46830.0,0.05943685]
[1649135428448,2.05828401,46831.0,46830.0,0.05943685]
[1649135428550,2.55828401,46831.0,46830.0,0.05943685]
[1649135428648,2.37995453,46831.0,46830.0,0.05943685]
[1649135429717,2.65868305,46831.0,46830.0,0.05943685]
[1649135430570,2.51816634,46831.0,46830.0,0.05943685]
[1649135430769,2.65872301,46831.0,46830.0,0.05943685]
[1649135433970,2.65872301,46831.0,46828.0,0.00055366]
[1649135434123,2.65872301,46831.0,46817.0,0.24956864]
[1649135434124,0.4324829,46818.0,46817.0,0.24956864]
[1649135434222,0.64863333,46818.0,46811.0,0.01068]
[1649135434320,0.320547,46817.0,46811.0,0.01068]
[1649135434420,0.36007159,46818.0,46807.0,0.01068]
[1649135434421,0.08218261,46814.0,46807.0,0.01068]
[1649135434519,0.08218261,46814.0,46801.0,0.7259]
[1649135434520,0.320547,46813.0,46802.0,0.01068]
[1649135434621,0.61160049,46813.0,46807.0,0.01068]
[1649135434721,0.0428,46812.0,46801.0,0.7259]
[1649135434822,0.320547,46811.0,46801.0,0.7259]
[1649135434923,0.320547,46811.0,46801.0,0.001]
[1649135435022,0.0428,46810.0,46801.0,0.001]
[1649135435121,0.427417,46809.0,46801.0,0.001]
[1649135435324,0.477417,46809.0,46801.0,0.001]
[1649135435422,1.46356305,46808.0,46801.0,0.001]
[1649135435523,1.46356305,46808.0,46806.0,0.25583553]
[1649135435672,1.46356305,46808.0,46806.0,0.001]
[1649135436873,1.51699405,46808.0,46806.0,0.001]
[1649135437300,0.320547,46807.0,46806.0,0.001]
[1649135437399,1.51699405,46808.0,46806.0,0.001]
[1649135437499,0.320547,46807.0,46806.0,0.001]
[1649135437601,1.51699405,46808.0,46806.0,0.001]
[1649135439754,1.51699405,46808.0,46801.0,0.01168]
[1649135439954,1.51699405,46808.0,46805.0,0.00059142]
[1649135440557,0.67545952,46807.0,46805.0,0.00059142]
[1649135440799,0.94003353,46807.0,46805.0,0.00059142]
[1649135440897,1.24003353,46807.0,46801.0,0.001]
[1649135441000,0.32641668,46806.0,46801.0,0.001]
[1649135441247,0.02641668,46806.0,46801.0,0.001]
[1649135441805,0.320547,46805.0,46801.0,0.001]
[1649135441903,0.3428,46804.0,46801.0,0.001]
[1649135442001,0.373986,46803.0,46801.0,0.001]
[1649135442100,0.3,46802.0,46801.0,0.001]
[1649135442249,0.620547,46802.0,46801.0,0.001]
[1649135442350,0.3,46802.0,46801.0,0.001]
[1649135442755,0.620547,46802.0,46801.0,0.001]
[1649135443153,0.63136451,46802.0,46801.0,0.001]
[1649135443954,0.67416451,46802.0,46801.0,0.001]
[1649135444256,0.663347,46802.0,46801.0,0.001]
[1649135444355,0.67416394,46802.0,46801.0,0.001]
[1649135445212,0.72416394,46802.0,46801.0,0.001]
[1649135450211,0.77416394,46802.0,46801.0,0.001]
[1649135451113,0.72416394,46802.0,46801.0,0.001]
[1649135461157,0.47416394,46802.0,46801.0,0.001]
[1649135461262,0.370547,46802.0,46801.0,0.001]
[1649135461459,0.05,46802.0,46801.0,0.001]
[1649135461658,0.12985068,46806.0,46801.0,0.001]
[1649135461860,0.07641668,46806.0,46801.0,0.001]
[1649135462213,0.02641668,46806.0,46802.0,0.23053887]
[1649135462309,0.82545952,46807.0,46802.0,0.23053887]
[1649135462611,0.67545952,46807.0,46803.0,0.320547]
[1649135462710,0.67545952,46807.0,46802.0,0.23053887]
[1649135462809,0.67545952,46807.0,46802.0,0.23109273]
[1649135463292,0.67545952,46807.0,46806.0,0.26408621]
[1649135463688,0.67545952,46807.0,46806.0,0.26399546]
[1649135463892,0.67545952,46807.0,46806.0,0.58454246]
[1649135464192,0.20688879,46807.0,46806.0,0.58454246]
[1649135471863,0.20688879,46807.0,46806.0,0.78454246]
[1649135477781,0.20688879,46807.0,46806.0,0.58454246]
[1649135478027,0.20688879,46807.0,46806.0,0.320547]
[1649135478955,0.20688879,46807.0,46804.0,0.320547]
[1649135479858,0.20688879,46807.0,46803.0,0.00055387]
[1649135480558,0.20688879,46807.0,46802.0,0.2]
[1649135480809,0.29226476,46806.0,46802.0,0.2]
[1649135482005,0.20688879,46807.0,46802.0,0.2]
[1649135482208,0.20688879,46807.0,46801.0,0.201]
[1649135482906,0.3,46806.0,46801.0,0.201]
[1649135483005,0.20688879,46807.0,46801.0,0.201]
[1649135483105,0.20688879,46807.0,46801.0,0.21168]
[1649135483205,0.20688879,46807.0,46802.0,0.00059137]
[1649135483306,0.25688879,46807.0,46802.0,0.00059137]
[1649135483459,0.3,46806.0,46802.0,0.00059137]
[1649135483657,0.026419,46805.0,46802.0,0.00059137]
[1649135483755,0.27083645,46804.0,46802.0,0.00059137]
[1649135484056,0.3,46803.0,46802.0,0.00059137]
[1649135484157,0.3,46803.0,46801.0,0.001]
[1649135484357,0.3,46803.0,46801.0,0.00159138]
[1649135485361,0.3,46803.0,46801.0,0.00091721]
[1649135486072,0.320547,46802.0,46801.0,0.00091721]
[1649135486174,0.663347,46802.0,46801.0,0.00091721]
[1649135486576,0.3428,46802.0,46801.0,0.00091721]
[1649135486925,0.663347,46802.0,46801.0,0.00091721]
[1649135489128,1.07032456,46802.0,46801.0,0.00091721]
[1649135489558,0.663347,46802.0,46801.0,0.00091721]
[1649135491863,0.80394526,46802.0,46801.0,0.00091721]
[1649135497748,1.21171989,46802.0,46801.0,0.00091721]
[1649135498248,0.80394526,46802.0,46801.0,0.00091721]
[1649135502667,0.90394526,46802.0,46801.0,0.00091721]
[1649135502763,0.95394526,46802.0,46801.0,0.00091721]
[1649135509986,1.00679007,46802.0,46801.0,0.00091721]
[1649135510089,1.00679007,46802.0,46801.0,0.00080763]
[1649135510190,0.95394526,46802.0,46801.0,0.00080763]
[1649135510291,0.96476381,46802.0,46801.0,0.00080763]
[1649135510789,0.96468349,46802.0,46801.0,0.00080763]
[1649135515418,0.66468349,46802.0,46801.0,0.00080763]
[1649135515514,0.96468349,46802.0,46801.0,0.00080763]
[1649135516606,0.66468349,46802.0,46801.0,0.00080763]
[1649135517007,0.65386494,46802.0,46801.0,0.00080763]
[1649135517206,0.66468268,46802.0,46801.0,0.00080763]
[1649135517609,0.96468268,46802.0,46801.0,0.00080763]
[1649135525621,0.96468268,46802.0,46800.0,0.001]
[1649135525722,0.63136683,46801.0,46800.0,0.001]
[1649135525824,0.73136683,46801.0,46800.0,0.001]
[1649135526022,0.91476509,46801.0,46800.0,0.001]
[1649135526529,0.91476497,46801.0,46800.0,0.001]
[1649135526724,0.91476451,46801.0,46800.0,0.001]
[1649135527064,0.91476439,46801.0,46800.0,0.001]
[1649135527862,0.91476381,46801.0,46800.0,0.001]
[1649135528515,1.41476381,46801.0,46800.0,0.001]
[1649135529668,1.40394526,46801.0,46800.0,0.001]
[1649135529817,1.45679007,46801.0,46800.0,0.001]
[1649135530318,1.40394526,46801.0,46800.0,0.001]
[1649135530418,1.45679007,46801.0,46800.0,0.001]
[1649135530521,1.40394526,46801.0,46800.0,0.001]
[1649135530671,1.45679007,46801.0,46800.0,0.001]
[1649135530787,1.40394526,46801.0,46800.0,0.001]
[1649135530886,1.44556537,46801.0,46800.0,0.001]
[1649135531935,0.94556537,46801.0,46800.0,0.001]
[1649135532791,0.94556537,46801.0,46800.0,0.00092813]
[1649135536025,1.44556537,46801.0,46800.0,0.00092813]
[1649135536426,1.52556537,46801.0,46800.0,0.00092813]
[1649135541284,1.66260301,46801.0,46800.0,0.00092813]
[1649135543146,1.52556537,46801.0,46800.0,0.00092813]
[1649135545401,1.66258808,46801.0,46800.0,0.00092813]
[1649135547379,1.52556537,46801.0,46800.0,0.00092813]
[1649135548331,1.02556537,46801.0,46800.0,0.00092813]
[1649135548530,1.16258066,46801.0,46800.0,0.00092813]
[1649135549383,1.66258066,46801.0,46800.0,0.00092813]
[1649135553706,1.36258066,46801.0,46800.0,0.00092813]
[1649135555812,1.36250196,46801.0,46800.0,0.00092813]
[1649135572480,2.01430196,46801.0,46800.0,0.00092813]
[1649135572876,0.6522145,46799.0,46798.0,0.00055349]
[1649135572977,1.61725552,46799.0,46798.0,0.00055349]
[1649135573128,1.87117171,46799.0,46797.0,0.001]
[1649135573229,1.20039631,46798.0,46797.0,0.001]
[1649135573326,1.30039631,46798.0,46797.0,0.001]
[1649135573427,1.34319631,46798.0,46797.0,0.001]
[1649135573528,1.48379457,46798.0,46797.0,0.001]
[1649135574032,1.98379457,46798.0,46797.0,0.001]
[1649135575800,2.16345816,46798.0,46797.0,0.001]
[1649135578203,2.16345816,46798.0,46796.0,0.0001]
[1649135578304,1.5318,46797.0,46796.0,0.0001]
[1649135578404,1.91338171,46797.0,46796.0,0.0001]
[1649135578506,3.34667705,46797.0,46796.0,0.0001]
[1649135578907,3.52634064,46797.0,46796.0,0.0001]
[1649135579007,3.71335593,46797.0,46796.0,0.0001]
[1649135579208,3.86335593,46797.0,46796.0,0.0001]
[1649135580397,4.39805593,46797.0,46796.0,0.0001]
[1649135584134,4.52605593,46797.0,46796.0,0.0001]
[1649135584433,4.52605593,46797.0,46794.0,0.00155352]
[1649135584434,4.461e-05,46795.0,46794.0,0.00155352]
[1649135584583,1.64825142,46795.0,46794.0,0.00155352]
[1649135584686,0.128,46794.0,46777.0,0.001]
[1649135584787,1.94825142,46795.0,46777.0,0.001]
[1649135584788,0.6518,46789.0,46777.0,0.001]
[1649135584891,0.5347,46781.0,46778.0,0.01069]
[1649135585000,3.23,46780.0,46778.0,0.01069]
[1649135585085,3.23,46780.0,46769.0,0.01069]
[1649135585086,0.38,46779.0,46769.0,0.01069]
[1649135585236,0.08,46777.0,46769.0,0.01069]
[1649135585342,0.08,46775.0,46768.0,0.01069]
[1649135585436,0.320762,46776.0,46768.0,0.01069]
[1649135585437,0.08,46771.0,46768.0,0.01069]
[1649135585533,0.05284481,46772.0,46768.0,0.01069]
[1649135585534,0.08,46769.0,46768.0,0.01069]
[1649135585638,0.400762,46769.0,46768.0,0.01069]
[1649135585739,0.493562,46769.0,46768.0,0.01069]
[1649135586040,0.053479,46765.0,46756.0,0.01]
[1649135586139,0.51884525,46764.0,46756.0,0.01]
[1649135586241,0.5347,46760.0,46757.0,0.00069]
[1649135586345,0.3,46759.0,46756.0,0.01]
[1649135586443,0.8775,46759.0,46756.0,0.01]
[1649135586541,0.34721657,46758.0,46756.0,0.01]
[1649135586639,2.55,46756.0,46747.0,0.2567]
[1649135586759,0.01082944,46751.0,46747.0,0.2567]
[1649135586846,0.33013102,46751.0,46747.0,0.2567]
[1649135586943,0.41159144,46751.0,46742.0,0.25159695]
[1649135587071,0.51606615,46751.0,46742.0,0.25159695]
[1649135587170,0.443562,46751.0,46742.0,0.25159695]
[1649135587271,0.59540681,46751.0,46742.0,0.25159695]
[1649135587371,0.543562,46751.0,46742.0,0.25159695]
[1649135587471,0.59540681,46751.0,46742.0,0.25159695]
[1649135587572,0.543562,46751.0,46742.0,0.25159695]
[1649135587723,0.543562,46751.0,46748.0,0.00062347]
[1649135588121,0.493562,46751.0,46748.0,0.00062347]
[1649135588227,0.492562,46751.0,46748.0,0.00062347]
[1649135588623,0.50339132,46751.0,46748.0,0.00062347]
[1649135588723,0.50339132,46751.0,46741.0,0.01]
[1649135588925,0.50339132,46751.0,46748.0,0.00062347]
[1649135589223,0.80339132,46751.0,46748.0,0.00062347]
[1649135589777,1.02159007,46751.0,46748.0,0.00062347]
[1649135589924,1.16231965,46751.0,46741.0,0.01]
[1649135590125,1.16231965,46751.0,46748.0,0.00062347]
[1649135590577,1.77654141,46751.0,46748.0,0.00062347]
[1649135591102,1.77654141,46751.0,46741.0,0.01]
[1649135591302,1.77654141,46751.0,46748.0,0.00058836]
[1649135592306,1.77654141,46751.0,46741.0,0.01]
[1649135592504,1.77654141,46751.0,46748.0,0.00057025]
[1649135593457,1.77654141,46751.0,46750.0,0.10187256]
[1649135594638,0.133503,46748.0,46740.0,0.18531416]
[1649135594740,0.133503,46748.0,46736.0,0.22237378]
[1649135594741,0.08,46746.0,46736.0,0.22237378]
[1649135594836,0.08,46744.0,46736.0,0.2]
[1649135594941,0.10645043,46743.0,46736.0,0.2]
[1649135595737,0.08,46740.0,46736.0,0.2]
[1649135595839,0.053505,46741.0,46740.0,0.15999999]
[1649135595988,0.12853766,46741.0,46740.0,0.15999999]
[1649135597141,0.17853766,46741.0,46740.0,0.15999999]
[1649135598140,0.44579466,46741.0,46740.0,0.15999999]
[1649135598281,0.12503266,46741.0,46740.0,0.15999999]
[1649135598835,0.44579466,46741.0,46740.0,0.15999999]
[1649135598938,0.12503266,46741.0,46740.0,0.15999999]
[1649135600641,0.12503266,46741.0,46740.0,0.12990635]
[1649135601141,0.44579466,46741.0,46740.0,0.12990635]
[1649135601355,0.68566958,46741.0,46740.0,0.12990635]
[1649135601644,0.82639916,46741.0,46740.0,0.12990635]
[1649135601844,0.68566958,46741.0,46740.0,0.12990635]
[1649135602100,0.82639916,46741.0,46740.0,0.12490635]
[1649135602299,0.68566958,46741.0,46740.0,0.12490635]
[1649135602496,0.58652424,46741.0,46740.0,0.12490635]
[1649135602697,0.44579466,46741.0,46740.0,0.12490635]
[1649135603299,0.12503266,46741.0,46740.0,0.12490635]
[1649135604502,0.07503266,46741.0,46740.0,0.64566835]
[1649135604705,0.0005525,46743.0,46741.0,2.6]
[1649135604803,0.0005525,46743.0,46742.0,0.54983109]
[1649135604914,0.0005525,46743.0,46742.0,0.82721223]
[1649135605002,0.0005525,46743.0,46742.0,0.97001223]
[1649135605102,0.15141958,46755.0,46743.0,3.2]
[1649135605103,0.14072958,46755.0,46743.0,3.2]
[1649135605204,0.75495134,46751.0,46750.0,0.520762]
[1649135605303,0.75495134,46751.0,46750.0,0.83331016]
[1649135605407,0.61422176,46751.0,46750.0,0.83331016]
[1649135605936,0.61422176,46751.0,46750.0,1.09984966]
[1649135606036,0.61422176,46751.0,46750.0,0.83331016]
[1649135607239,0.61422176,46751.0,46750.0,1.12654352]
[1649135609641,0.61422176,46751.0,46747.0,0.053479]
[1649135609642,3.2,46750.0,46744.0,0.106958]
[1649135609748,3.2,46750.0,46741.0,0.0107]
[1649135609749,3.3780468,46750.0,46741.0,0.0107]
[1649135609834,0.1780468,46750.0,46733.0,0.2]
[1649135609937,0.1780468,46750.0,46730.0,0.02237664]
[1649135609938,0.321016,46749.0,46730.0,0.02237664]
[1649135610049,0.3,46748.0,46733.0,0.2]
[1649135610136,0.321016,46747.0,46733.0,0.2]
[1649135610289,0.363816,46747.0,46733.0,0.2]
[1649135610384,0.413816,46747.0,46740.0,0.12490635]
[1649135610485,0.44026887,46747.0,46740.0,0.12490635]
[1649135610636,0.44026887,46747.0,46740.0,0.12553011]
[1649135610736,0.0535068,46742.0,46740.0,0.12553011]
[1649135610841,0.053507,46741.0,46740.0,0.12553011]
[1649135610939,0.417323,46741.0,46740.0,0.12553011]
[1649135611285,0.096307,46741.0,46740.0,0.12553011]
[1649135611494,0.417323,46741.0,46740.0,0.12553011]
[1649135611635,0.096307,46741.0,46740.0,0.12490635]
[1649135611834,0.417323,46741.0,46740.0,0.12490635]
[1649135612638,0.71482895,46741.0,46740.0,0.12490635]
[1649135613036,0.85561666,46741.0,46740.0,0.12490635]
[1649135613292,0.71482895,46741.0,46740.0,0.12490635]
[1649135613444,0.39381295,46741.0,46740.0,0.12490635]
[1649135613543,0.85561666,46741.0,46740.0,0.12490635]
[1649135613891,0.53460066,46741.0,46740.0,0.12490635]
[1649135614193,0.71482895,46741.0,46740.0,0.12490635]
[1649135614594,0.85561666,46741.0,46740.0,0.12490635]
[1649135614799,0.39381295,46741.0,46740.0,0.12490635]
[1649135614895,0.71482895,46741.0,46740.0,0.12490635]
[1649135614996,0.85561666,46741.0,46740.0,0.12490635]
[1649135616447,1.15561666,46741.0,46740.0,0.12490635]
[1649135618840,0.76180371,46741.0,46740.0,0.12490635]
[1649135618939,0.96239271,46741.0,46740.0,0.12490635]
[1649135619896,1.01589971,46741.0,46740.0,0.12490635]
[1649135619991,0.71589971,46741.0,46740.0,0.12490635]
[1649135620092,1.01589971,46741.0,46740.0,0.12490635]
[1649135620293,0.875112,46741.0,46740.0,0.12490635]
[1649135620389,0.917912,46741.0,46740.0,0.12490635]
[1649135620489,1.05869971,46741.0,46740.0,0.12490635]
[1649135623594,0.45192366,46741.0,46740.0,0.12490635]
[1649135623894,0.31113595,46741.0,46740.0,0.12490635]
[1649135624681,0.53211757,46741.0,46740.0,0.12490635]
[1649135626335,0.31113595,46741.0,46740.0,0.12490635]
[1649135627383,0.56901466,46741.0,46740.0,0.12490635]
[1649135628340,0.86901466,46741.0,46740.0,0.12490635]
[1649135628638,1.00980237,46741.0,46740.0,0.12490635]
[1649135631095,0.70980237,46741.0,46740.0,0.12490635]
[1649135631200,0.18358771,46741.0,46740.0,0.12490635]
[1649135631296,0.50464371,46741.0,46740.0,0.12490635]
[1649135631398,0.80464371,46741.0,46740.0,0.12490635]
[1649135631497,0.363856,46741.0,46740.0,0.12490635]
[1649135631695,0.50464371,46741.0,46740.0,0.12490635]
[1649135631896,0.363856,46741.0,46740.0,0.12490635]
[1649135632236,0.663856,46741.0,46740.0,0.12490635]
[1649135632340,0.94085547,46741.0,46740.0,0.12490635]
[1649135632742,1.08164318,46741.0,46740.0,0.12490635]
[1649135632840,1.13515118,46741.0,46740.0,0.12490635]
[1649135636741,0.85815171,46741.0,46740.0,0.12490635]
[1649135637844,1.07883299,46741.0,46740.0,0.12490635]
[1649135639243,0.55815171,46741.0,46740.0,0.12490635]
[1649135639448,0.0428,46741.0,46740.0,0.12490635]
[1649135639562,0.05,46742.0,46740.0,0.12490635]
[1649135639657,0.15148771,46743.0,46740.0,0.12490635]
[1649135639658,0.05,46743.0,46740.0,0.12490635]
[1649135639756,0.321056,46742.0,46740.0,0.12490635]
[1649135639856,0.0107,46744.0,46740.0,0.12490635]
[1649135640157,0.01062286,46744.0,46740.0,0.12860374]
[1649135640255,0.321056,46743.0,46740.0,0.12860374]
[1649135640361,0.371056,46743.0,46741.0,0.24833982]
[1649135642211,0.0107,46742.0,46741.0,0.24833982]
[1649135642310,0.226877,46742.0,46741.0,0.24833982]
[1649135642413,0.14078771,46746.0,46742.0,2.6]
[1649135642515,0.81716612,46760.0,46744.0,1.7]
[1649135642516,0.33841158,46751.0,46744.0,1.7]
[1649135642618,0.33841158,46751.0,46745.0,0.321045]
[1649135642713,0.33841158,46751.0,46746.0,0.3]
[1649135642812,0.33841158,46751.0,46747.0,0.321045]
[1649135642916,0.15069463,46751.0,46747.0,0.321045]
[1649135643289,0.15069463,46751.0,46746.0,0.3]
[1649135643445,0.15069463,46751.0,46747.0,0.321045]
[1649135643544,0.15069463,46751.0,46746.0,0.3]
[1649135643646,0.15069463,46751.0,46744.0,0.03093617]
[1649135643797,0.25705956,46749.0,46743.0,0.321045]
[1649135644050,0.25705956,46749.0,46740.0,0.12860374]
[1649135644145,0.25705956,46749.0,46741.0,0.321045]
[1649135644246,0.25705956,46749.0,46741.0,0.32159937]
[1649135644345,0.00055429,46748.0,46741.0,0.32159937]
[1649135644645,0.28270858,46748.0,46742.0,0.2572797]
[1649135644796,0.00055429,46748.0,46743.0,0.321045]
[1649135645246,0.25705956,46749.0,46743.0,0.321045]
[1649135645449,0.00055429,46748.0,46743.0,0.321045]
[1649135646397,0.50598639,46749.0,46743.0,0.321045]
[1649135646599,0.50598639,46749.0,46741.0,0.32159937]
[1649135646699,0.00055429,46748.0,46741.0,0.32159937]
[1649135647295,0.00055429,46748.0,46743.0,0.21]
[1649135647395,0.00055429,46748.0,46744.0,0.321045]
[1649135647495,0.00055429,46748.0,46743.0,0.21]
[1649135647597,0.50598639,46749.0,46744.0,0.321045]
[1649135647696,0.50598639,46749.0,46743.0,0.21]
[1649135647898,0.00055383,46748.0,46744.0,0.321045]
[1649135648850,0.50598639,46749.0,46743.0,0.21]
[1649135649050,0.00055383,46748.0,46743.0,0.21]
[1649135649452,0.00055383,46748.0,46744.0,0.321045]
[1649135649550,0.00055383,46748.0,46745.0,0.321045]
[1649135649651,0.00055383,46748.0,46746.0,0.321045]